fUST/lending_fUST_20250222
["ID","MTS","AMOUNT","RATE_DAILY","PERIOD"]
[354050534,1740207049127,-500.0,0.00016438,2]
[354050535,1740207049137,-500.0,0.00016438,2]
[354050536,1740207049148,-500.0,0.00016438,2]
[354050537,1740207049158,-500.0,0.00016438,2]
[354050538,1740207049167,-500.0,0.00016438,2]
[354050539,1740207049177,-500.0,0.00016438,2]
[354050540,1740207049188,-500.0,0.00016438,2]
[354050541,1740207049199,-500.0,0.00016438,2]
[354050542,1740207049209,-597.52280878,0.00016438,2]
[354050543,1740207049218,-500.0,0.00016438,2]
[354050544,1740207049228,-500.0,0.00016438,2]
[354050545,1740207049238,-467.677778,0.00016438,2]
[354050546,1740207049249,-467.677778,0.00016438,2]
[354050547,1740207049263,-467.677778,0.00016438,2]
[354050548,1740207049282,-467.677778,0.00016438,2]
[354050549,1740207049294,-467.677778,0.00016438,2]
[354050550,1740207049305,-467.677778,0.00016438,2]
[354050551,1740207049315,-467.677778,0.00016438,2]
[354050552,1740207049325,-467.677778,0.00016438,2]
[354050553,1740207049337,-467.677778,0.00016438,2]
[354050554,1740207049349,-467.677778,0.00016438,2]
[354050555,1740207049359,-467.677778,0.00016438,2]
[354050556,1740207049368,-467.677778,0.00016438,2]
[354050557,1740207049379,-467.677778,0.00016438,2]
[354050558,1740207049389,-467.677778,0.00016438,2]
[354050559,1740207049398,-467.677778,0.00016438,2]
[354050560,1740207049408,-467.677778,0.00016438,2]
[354050561,1740207049419,-467.677778,0.00016438,2]
[354050562,1740207049430,-467.677778,0.00016438,2]
[354050563,1740207049440,-3000.0,0.0001644,2]
[354050564,1740207049449,-3000.0,0.0001645,2]
[354050565,1740207049459,-3000.0,0.0001646,2]
[354050566,1740207049469,-3000.0,0.0001647,2]
[354050567,1740207049479,-150.0,0.00016473,2]
[354050568,1740207049489,-3000.0,0.0001648,2]
[354050569,1740207049499,-3000.0,0.0001649,2]
[354050570,1740207049508,-31364.69,0.000165,2]
[354050571,1740207049517,-28283.51,0.000165,2]
[354050572,1740207049526,-3000.0,0.000165,2]
[354050573,1740207049535,-467.677778,0.000165,2]
[354050574,1740207049545,-467.677788,0.000165,2]
[354050575,1740207049554,-3000.0,0.0001651,2]
[354050576,1740207049563,-689.73484884,0.00016513,2]
[354050577,1740207049573,-3000.0,0.0001652,2]
[354050578,1740207049582,-1500.0,0.00016522,2]
[354050579,1740207049592,-1562.3274581,0.00016522,2]
[354050580,1740207049601,-3000.0,0.0001653,2]
[354050581,1740207049611,-3000.0,0.0001654,2]
[354050582,1740207049620,-3000.0,0.0001655,2]
[354050583,1740207049629,-3000.0,0.0001656,2]
[354050584,1740207049639,-3000.0,0.0001657,2]
[354050585,1740207049648,-3879.204039,0.0001658,2]
[354050586,1740207049658,-689.73484884,0.00016613,2]
[354050587,1740207049667,-600.0,0.00016644,2]
[354050588,1740207049678,-698.0,0.00016644,2]
[354050589,1740207049687,-507.0,0.00016644,2]
[354050590,1740207049697,-282.0,0.00016686,2]
[354050591,1740207049707,-162.566756,0.00016698,10]
[354050592,1740207049716,-689.73484884,0.00016713,2]
[354050593,1740207049726,-888.40084236,0.000168,7]
[354050594,1740207049735,-689.73484884,0.00016813,2]
[354050595,1740207049745,-722.22217268,0.0001682,2]
[354050596,1740207049754,-2000.0,0.0001682,2]
[354050597,1740207049764,-335.0,0.0001686,2]
[354050598,1740207049773,-2950.0,0.0001687,2]
[354050599,1740207049783,-79537.3861665,0.00016886,2]
[354050600,1740207049792,-306.0,0.00016904,2]
[354050601,1740207049802,-199.4005393,0.00016904,2]
[354050602,1740207049812,-689.73484884,0.00016913,2]
[354050603,1740207049822,-698.0,0.00016918,2]
[354050604,1740207049832,-507.0,0.00016918,2]
[354050605,1740207049841,-2000.0,0.00017,2]
[354050606,1740207049850,-58268.65111105,0.00017,2]
[354050607,1740207049859,-1000.21247836,0.00017,2]
[354050608,1740207049869,-689.73484884,0.00017013,2]
[354050609,1740207049879,-250.0,0.00017021,2]
[354050610,1740207049888,-713.8462809,0.00017041,2]
[354050611,1740207049897,-29820.70367904,0.0001711,2]
[354050612,1740207049907,-689.73484884,0.00017113,2]
[354050613,1740207049916,-150.0,0.00017158,4]
[354050614,1740207049926,-698.0,0.00017192,2]
[354050615,1740207049936,-507.0,0.00017192,2]
[354050616,1740207049945,-689.73484884,0.00017213,2]
[354050617,1740207049955,-151.00827576,0.0001725,4]
[354050618,1740207049964,-689.73484884,0.00017313,2]
[354050619,1740207049974,-7177.10861112,0.000174,2]
[354050620,1740207049983,-689.73484884,0.00017413,2]
[354050621,1740207049993,-538.0,0.00017424,2]
[354050622,1740207050002,-542.787,0.00017424,2]
[354050623,1740207050012,-2288.0,0.00017424,2]
[354050624,1740207050022,-698.0,0.00017466,2]
[354050625,1740207050031,-507.0,0.00017466,2]
[354050626,1740207050041,-30000.0,0.000175,10]
[354050627,1740207050051,-30000.0,0.000175,10]
[354050628,1740207050061,-30000.0,0.000175,10]
[354050629,1740207050070,-21704.71134847,0.000175,10]
[354050630,1740207050081,-689.73484884,0.00017513,2]
[354050631,1740207050090,-545.3,0.00017534,4]
[354050632,1740207050100,-453.76600351,0.00017568,2]
[354050633,1740207050110,-22626.47802629,0.00017576,2]
[354050634,1740207050119,-2041.93003948,0.000176,2]
[354050635,1740207050129,-689.73484884,0.00017613,2]
[354050636,1740207050139,-55131.17098095,0.000177,2]
[354050637,1740207050148,-689.73484884,0.00017713,2]
[354050638,1740207050159,-457.67179643,0.0001772,2]
[354050639,1740207050168,-2000.0,0.0001772,2]
[354050640,1740207050178,-2000.0,0.0001772,2]
[354050641,1740207050187,-698.0,0.0001774,2]
[354050642,1740207050197,-507.0,0.0001774,2]
[354050643,1740207050206,-5903.32069227,0.000178,2]
[354050644,1740207050216,-2021.91,0.000178,2]
[354050645,1740207050225,-1000.0,0.000178,2]
[354050646,1740207050235,-689.73484884,0.00017813,2]
[354050647,1740207050244,-1542.16361079,0.0001782,2]
[354050648,1740207050254,-10000.0,0.00017853,60]
[354050649,1740207050264,-516.7,0.00017853,60]
[354050650,1740207050273,-39510.38781592,0.000179,4]
[354050651,1740207050283,-30000.0,0.000179,4]
[354050652,1740207050292,-154.0080815,0.000179,2]
[354050653,1740207050302,-79537.3861665,0.000179,2]
[354050654,1740207050312,-689.73484884,0.00017913,2]
[354050655,1740207050321,-345.0,0.0001792,2]
[354050656,1740207050331,-266803.49021867,0.00017962,10]
[354050657,1740207050345,-1750.31526637,0.00017962,2]
[354050658,1740207050354,-501.87883399,0.00017962,2]
[354050659,1740207050363,-43766.92888665,0.00017962,2]
[354050660,1740207050373,-3552.0,0.00017962,32]
[354050661,1740207050382,-2006.0,0.00017962,30]
[354050662,1740207050391,-334.25,0.00017962,30]
[354050663,1740207050401,-732.55101817,0.00017962,32]
[354050664,1740207050410,-9057.44449524,0.00017962,2]
[354050665,1740207050421,-1279.4478554,0.00017962,35]
[354050666,1740207050430,-255.388629,0.00017962,10]
[354050667,1740207050440,-5252.08027349,0.00018,30]
[354050668,1740207050449,-110113.90131001,0.00018,15]
[354050669,1740207050602,-509.17471635,0.00018,15]
[354050670,1740207050674,-3060.42695228,0.00013944,2]
[354050671,1740207050686,-872.23335984,0.00013944,2]
[354050672,1740207050697,-1641.09759612,0.00013944,2]
[354050673,1740207050709,-3741.28209176,0.00013944,2]
[354050674,1740207050718,-502.59154074,0.00013944,2]
[354050675,1740207050727,-1658.60555366,0.00014026,2]
[354050676,1740207050738,-691.15,0.00014026,2]
[354050677,1740207050750,-6965.28444634,0.00014026,2]
[354050678,1740207050759,-9315.04,0.00014109,2]
[354050679,1740207050768,-5494.96610968,0.00014191,2]
[354050680,1740207050926,-331.266836,0.00013944,2]
[354050681,1740207050941,-2071.413164,0.00013944,2]
[354050682,1740207050950,-2402.68,0.00014026,2]
[354050683,1740207050959,-3820.07389032,0.00014191,2]
[354050684,1740207050969,-7293.78679956,0.00014273,2]
[354050685,1740207050989,-2021.25320044,0.00014273,2]
[354050686,1740207050999,-9315.04,0.00014355,2]
[354050687,1740207051008,-451.245,0.00014424,2]
[354050688,1740207051101,-9315.04,0.00014437,2]
[354050689,1740207051111,-9315.04,0.0001452,2]
[354050690,1740207051122,-9315.04,0.00014602,2]
[354050691,1740207051131,-9315.04,0.00014684,2]
[354050692,1740207051141,-9315.04,0.00014766,2]
[354050693,1740207051150,-9315.04,0.00014848,2]
[354050694,1740207051160,-1000.85324265,0.0001493,2]
[354050695,1740207051172,-8314.18675735,0.0001493,2]
[354050696,1740207051181,-9315.04,0.00015013,2]
[354050697,1740207051191,-1701.32070543,0.00015095,2]
[354050698,1740207051207,-2402.68,0.00014109,2]
[354050699,1740207051216,-1664.13850203,0.00015095,2]
[354050700,1740207399591,225.329697,9.041e-05,2]
[354050894,1740208051118,-487.9334583,0.00012921,2]
[354050895,1740208051140,-43.49398047,0.00013699,2]
[354050896,1740208155194,-300.0,0.00012897,2]
[354050897,1740208155216,-951.47396538,0.00012898,2]
[354050931,1740208232547,-300.0,0.00012897,2]
[354050933,1740208232557,-537.6261697,0.00012898,2]
[354050946,1740208232667,-23410.89986492,0.00012898,2]
[354050948,1740208232676,-262.61243653,0.00013699,2]
[354050950,1740208232686,-352.8731132,0.00013699,2]
[354050952,1740208232696,-654.57527,0.00013699,2]
[354050954,1740208232705,-453.64943383,0.00013798,2]
[354050956,1740208232715,-500.0,0.00013873,2]
[354050958,1740208232724,-500.0,0.00013873,2]
[354050960,1740208232736,-500.0,0.00013873,2]
[354050962,1740208232746,-313.24510031,0.00013873,2]
[354050964,1740208232755,-500.0,0.00013873,2]
[354050966,1740208232764,-602.22954604,0.00013873,2]
[354050968,1740208232775,-500.0,0.00013873,2]
[354050970,1740208232784,-159.2614242,0.00013873,2]
[354050972,1740208232794,-500.0,0.00013873,2]
[354050974,1740208232803,-504.95788267,0.0001389,2]
[354050976,1740208232812,-1338.82,0.00013897,2]
[354050978,1740208232822,-500.0,0.00013897,2]
[354050980,1740208232831,-501.15543879,0.00013897,2]
[354050982,1740208232840,-500.0,0.00013897,2]
[354050984,1740208232849,-500.0,0.00013897,2]
[354050986,1740208232859,-739.71,0.00013897,2]
[354050988,1740208232867,-500.0,0.00013897,2]
[354050990,1740208232876,-500.0,0.00013897,2]
[354050992,1740208232885,-500.0,0.00013897,2]
[354050994,1740208232896,-500.0,0.00013897,2]
[354050996,1740208232905,-500.0,0.00013897,2]
[354050998,1740208232914,-500.0,0.00013897,2]
[354051000,1740208232923,-500.0,0.00013897,2]
[354051002,1740208232933,-500.0,0.00013897,2]
[354051004,1740208232942,-500.0,0.00013897,2]
[354051006,1740208232952,-500.0,0.00013897,2]
[354051008,1740208232961,-500.0,0.00013897,2]
[354051010,1740208232970,-500.0,0.00013897,2]
[354051012,1740208232979,-500.0,0.00013897,2]
[354051014,1740208232989,-500.0,0.00013897,2]
[354051015,1740208232998,-500.0,0.00013897,2]
[354051016,1740208233007,-600.9,0.00013897,2]
[354051017,1740208233016,-500.0,0.00013897,2]
[354051018,1740208233026,-1058.86,0.00013897,2]
[354051019,1740208233035,-500.0,0.00013897,2]
[354051020,1740208233044,-368.88969866,0.00013897,2]
[354051021,1740208233054,-595.95763773,0.00013897,2]
[354051022,1740208233064,-500.0,0.00013897,2]
[354051023,1740208233073,-230.12971334,0.00013897,2]
[354051024,1740208233083,-500.0,0.00013897,2]
[354051025,1740208233092,-500.0,0.00013897,2]
[354051026,1740208233101,-500.0,0.00013897,2]
[354051027,1740208233110,-500.0,0.00013897,2]
[354051028,1740208233119,-500.0,0.00013897,2]
[354051029,1740208233128,-500.0,0.00013897,2]
[354051030,1740208233137,-500.0,0.00013897,2]
[354051031,1740208233146,-500.0,0.00013897,2]
[354051032,1740208233155,-500.0,0.00013897,2]
[354051033,1740208233165,-500.0,0.00013897,2]
[354051034,1740208233174,-500.0,0.00013897,2]
[354051035,1740208233183,-500.0,0.00013897,2]
[354051036,1740208233192,-563.72688061,0.00013897,2]
[354051038,1740208233202,-500.0,0.00013897,2]
[354051040,1740208233212,-500.0,0.00013897,2]
[354051042,1740208233222,-275.62217577,0.00013897,2]
[354051044,1740208233231,-349.24470025,0.00013897,2]
[354051046,1740208233240,-500.0,0.00013897,2]
[354051048,1740208233251,-500.0,0.00013897,2]
[354051061,1740208233368,-500.0,0.00013897,2]
[354051063,1740208233380,-5184.42,0.00013897,2]
[354051065,1740208233389,-5184.42,0.00013897,2]
[354051067,1740208233399,-500.0,0.00013897,2]
[354051069,1740208233408,-500.0,0.00013897,2]
[354051072,1740208233418,-519.27935031,0.00013897,2]
[354051074,1740208233427,-460.48709657,0.00013897,2]
[354051076,1740208233436,-744.55,0.00013897,2]
[354051077,1740208233445,-697.64,0.00013897,2]
[354051080,1740208233455,-500.0,0.00013897,2]
[354051082,1740208233465,-500.0,0.00013897,2]
[354051083,1740208233474,-500.0,0.00013897,2]
[354051086,1740208233484,-500.0,0.00013897,2]
[354051088,1740208233493,-500.0,0.00013897,2]
[354051090,1740208233504,-500.0,0.00013897,2]
[354051092,1740208233514,-500.0,0.00013897,2]
[354051094,1740208233524,-500.0,0.00013897,2]
[354051096,1740208233534,-500.0,0.00013897,2]
[354051098,1740208233544,-241.28436004,0.00013897,2]
[354051100,1740208233553,-500.0,0.00013897,2]
[354051102,1740208233565,-500.0,0.00013897,2]
[354051104,1740208233574,-500.0,0.00013897,2]
[354051106,1740208233584,-500.0,0.00013897,2]
[354051108,1740208233593,-500.0,0.00013897,2]
[354051110,1740208233603,-500.0,0.00013897,2]
[354051112,1740208233612,-500.0,0.00013897,2]
[354051114,1740208233621,-501.90858901,0.00013897,2]
[354051116,1740208233631,-4837.66,0.00013897,2]
[354051118,1740208233641,-4837.66,0.00013897,2]
[354051120,1740208233650,-4837.66,0.00013897,2]
[354051122,1740208233659,-4837.66,0.00013897,2]
[354051124,1740208233669,-4837.66,0.00013897,2]
[354051126,1740208233678,-4837.66,0.00013897,2]
[354051128,1740208233689,-4837.66,0.00013897,2]
[354051130,1740208233698,-500.0,0.00013897,2]
[354051132,1740208233707,-500.0,0.00013897,2]
[354051134,1740208233717,-500.0,0.00013897,2]
[354051136,1740208233728,-500.0,0.00013897,2]
[354051138,1740208233739,-500.0,0.00013897,2]
[354051140,1740208233747,-500.0,0.00013897,2]
[354051142,1740208233757,-556.77,0.00013897,2]
[354051144,1740208233766,-500.0,0.00013897,2]
[354051146,1740208233776,-500.0,0.00013897,2]
[354051148,1740208233785,-500.0,0.00013897,2]
[354051150,1740208233795,-553.37,0.00013897,2]
[354051152,1740208233807,-500.0,0.00013897,2]
[354051154,1740208233817,-500.0,0.00013898,2]
[354051156,1740208233827,-618.5918813,0.00013898,2]
[354051158,1740208233836,-500.0,0.00013898,2]
[354051160,1740208233845,-500.0,0.00013898,2]
[354051162,1740208233855,-501.65417121,0.00013898,2]
[354051164,1740208233864,-197.19615459,0.00013898,2]
[354051166,1740208233874,-500.0,0.00013898,2]
[354051168,1740208233883,-508.32967103,0.00013898,2]
[354051171,1740208233894,-501.27316925,0.00013898,2]
[354051172,1740208233903,-500.0,0.00013898,2]
[354051175,1740208233913,-500.0,0.00013898,2]
[354051177,1740208233922,-500.0,0.00013898,2]
[354051179,1740208233931,-500.0,0.00013898,2]
[354051181,1740208233941,-500.0,0.00013898,2]
[354051183,1740208233950,-500.0,0.00013898,2]
[354051185,1740208233959,-500.86263502,0.00013898,2]
[354051187,1740208233968,-500.0,0.00013898,2]
[354051189,1740208233978,-500.0,0.00013898,2]
[354051191,1740208233987,-503.49520543,0.00013898,2]
[354051193,1740208233997,-500.0,0.00013898,2]
[354051195,1740208234006,-500.80169665,0.00013898,2]
[354051197,1740208234015,-500.0,0.00013898,2]
[354051199,1740208234025,-500.0,0.00013898,2]
[354051201,1740208234035,-505.14423821,0.00013898,2]
[354051203,1740208234044,-500.95562707,0.00013898,2]
[354051205,1740208234055,-500.0,0.00013898,2]
[354051207,1740208234066,-504.34120127,0.00013898,2]
[354051209,1740208234076,-500.0,0.00013898,2]
[354051211,1740208234085,-500.0,0.00013898,2]
[354051213,1740208234095,-165.24063384,0.00013898,2]
[354051215,1740208234105,-500.0,0.00013898,2]
[354051217,1740208234114,-500.0,0.00013898,2]
[354051219,1740208234123,-500.0,0.00013898,2]
[354051221,1740208234132,-500.0,0.00013898,2]
[354051223,1740208234141,-500.0,0.00013898,2]
[354051225,1740208234150,-500.0,0.00013898,2]
[354051227,1740208234159,-501.87606981,0.00013898,2]
[354051229,1740208234169,-500.0,0.00013898,2]
[354051231,1740208234178,-500.0,0.00013898,2]
[354051233,1740208234187,-502.13907655,0.00013898,2]
[354051235,1740208234196,-500.0,0.00013898,2]
[354051237,1740208234205,-500.0,0.00013898,2]
[354051239,1740208234215,-500.0,0.00013898,2]
[354051241,1740208234224,-500.0,0.00013898,2]
[354051243,1740208234233,-500.0,0.00013898,2]
[354051245,1740208234243,-500.0,0.00013898,2]
[354051247,1740208234252,-500.0,0.00013898,2]
[354051249,1740208234260,-500.0,0.00013898,2]
[354051251,1740208234270,-500.0,0.00013898,2]
[354051252,1740208234279,-500.0,0.00013898,2]
[354051254,1740208234289,-500.0,0.00013898,2]
[354051256,1740208234298,-500.0,0.00013898,2]
[354051258,1740208234307,-500.0,0.00013898,2]
[354051260,1740208234317,-500.0,0.00013898,2]
[354051262,1740208234326,-500.0,0.00013898,2]
[354051264,1740208234335,-500.0,0.00013898,2]
[354051266,1740208234344,-500.98,0.00013898,2]
[354051268,1740208234353,-500.0,0.00013898,2]
[354051270,1740208234363,-500.0,0.00013898,2]
[354051272,1740208234373,-228.04,0.00013898,2]
[354051274,1740208234382,-500.0,0.00013898,2]
[354051276,1740208234392,-500.0,0.00013898,2]
[354051278,1740208234401,-500.0,0.00013898,2]
[354051280,1740208234411,-500.0,0.00013898,2]
[354051282,1740208234420,-500.0,0.00013898,2]
[354051284,1740208234429,-500.0,0.00013898,2]
[354051286,1740208234438,-503.17141945,0.00013898,2]
[354051288,1740208234449,-500.0,0.00013898,2]
[354051290,1740208234459,-500.0,0.00013898,2]
[354051293,1740208234468,-508.44518752,0.00013898,2]
[354051295,1740208234478,-500.0,0.00013898,2]
[354051297,1740208234487,-500.0,0.00013898,2]
[354051299,1740208234497,-500.0,0.00013898,2]
[354051301,1740208234507,-500.0,0.00013898,2]
[354051303,1740208234516,-500.0,0.00013898,2]
[354051305,1740208234525,-500.0,0.00013898,2]
[354051307,1740208234535,-213.97509323,0.00013898,2]
[354051309,1740208234544,-501.77942504,0.00013898,2]
[354051311,1740208234554,-500.0,0.00013898,2]
[354051313,1740208234565,-500.0,0.00013898,2]
[354051315,1740208234574,-500.0,0.00013898,2]
[354051317,1740208234584,-500.0,0.00013898,2]
[354051319,1740208234593,-500.0,0.00013898,2]
[354051321,1740208234602,-501.40233573,0.00013898,2]
[354051323,1740208234611,-500.0,0.00013898,2]
[354051325,1740208234620,-500.0,0.00013898,2]
[354051327,1740208234630,-500.0,0.00013898,2]
[354051329,1740208234640,-500.0,0.00013898,2]
[354051331,1740208234649,-501.18218391,0.00013898,2]
[354051333,1740208234658,-500.0,0.00013898,2]
[354051335,1740208234668,-600.03144902,0.00013898,2]
[354051337,1740208234679,-500.0,0.00013898,2]
[354051339,1740208234689,-500.0,0.00013898,2]
[354051341,1740208234698,-500.0,0.00013898,2]
[354051343,1740208234708,-500.0,0.00013898,2]
[354051345,1740208234717,-500.0,0.00013898,2]
[354051347,1740208234727,-371.3578521,0.00013898,2]
[354051349,1740208234738,-491.0,0.00013898,2]
[354051351,1740208234747,-500.0,0.00013898,2]
[354051353,1740208234757,-500.0,0.00013898,2]
[354051355,1740208234766,-500.92810676,0.00013898,2]
[354051357,1740208234776,-500.0,0.00013898,2]
[354051359,1740208234785,-500.0,0.00013898,2]
[354051361,1740208234794,-590.01978453,0.00013898,2]
[354051363,1740208234803,-500.0,0.00013898,2]
[354051365,1740208234813,-500.0,0.00013898,2]
[354051367,1740208234822,-500.0,0.00013898,2]
[354051369,1740208234831,-500.2973683,0.00013898,2]
[354051371,1740208234840,-500.43505284,0.00013898,2]
[354051373,1740208234850,-500.0,0.00013898,2]
[354051375,1740208234859,-500.0,0.00013898,2]
[354051377,1740208234868,-500.0,0.00013898,2]
[354051379,1740208234877,-265.63136072,0.00013898,2]
[354051381,1740208234886,-500.0,0.00013898,2]
[354051383,1740208234895,-500.0,0.00013898,2]
[354051385,1740208234904,-500.0,0.00013898,2]
[354051387,1740208234913,-500.0,0.00013898,2]
[354051389,1740208234923,-500.47878859,0.00013898,2]
[354051392,1740208234933,-500.0,0.00013898,2]
[354051394,1740208234942,-500.0,0.00013898,2]
[354051396,1740208234951,-500.0,0.00013898,2]
[354051398,1740208234960,-500.5229205,0.00013898,2]
[354051400,1740208234970,-500.0,0.00013898,2]
[354051402,1740208234979,-500.0,0.00013898,2]
[354051404,1740208234988,-500.0,0.00013898,2]
[354051406,1740208234998,-500.0,0.00013898,2]
[354051408,1740208235007,-528.90470738,0.00013898,2]
[354051410,1740208235016,-606.15079048,0.00013898,2]
[354051412,1740208235026,-500.0,0.00013898,2]
[354051414,1740208235035,-500.0,0.00013898,2]
[354051416,1740208235044,-500.0,0.00013898,2]
[354051418,1740208235053,-500.0,0.00013898,2]
[354051420,1740208235063,-500.0,0.00013898,2]
[354051422,1740208235072,-500.0,0.00013898,2]
[354051424,1740208235082,-500.0,0.00013898,2]
[354051426,1740208235091,-500.0,0.00013898,2]
[354051428,1740208235100,-500.0,0.00013898,2]
[354051430,1740208235109,-500.0,0.00013898,2]
[354051432,1740208235118,-500.0,0.00013898,2]
[354051434,1740208235128,-500.0,0.00013898,2]
[354051436,1740208235137,-500.0,0.00013898,2]
[354051438,1740208235148,-500.0,0.00013898,2]
[354051440,1740208235158,-500.0,0.00013898,2]
[354051442,1740208235167,-500.0,0.00013898,2]
[354051444,1740208235176,-500.0,0.00013898,2]
[354051446,1740208235185,-504.41450938,0.00013898,2]
[354051448,1740208235194,-500.0,0.00013898,2]
[354051450,1740208235203,-500.0,0.00013898,2]
[354051452,1740208235213,-500.0,0.00013898,2]
[354051454,1740208235222,-500.0,0.00013898,2]
[354051456,1740208235231,-500.0,0.00013898,2]
[354051458,1740208235240,-500.81966885,0.00013898,2]
[354051460,1740208235249,-500.0,0.00013898,2]
[354051462,1740208235259,-501.11123597,0.00013898,2]
[354051464,1740208235268,-500.0,0.00013898,2]
[354051466,1740208235277,-502.71939951,0.00013898,2]
[354051468,1740208235286,-500.0,0.00013898,2]
[354051470,1740208235296,-500.0,0.00013898,2]
[354051472,1740208235305,-500.0,0.00013898,2]
[354051474,1740208235316,-500.0,0.00013898,2]
[354051476,1740208235326,-500.0,0.00013898,2]
[354051478,1740208235335,-501.20961955,0.00013898,2]
[354051480,1740208235344,-500.0,0.00013898,2]
[354051482,1740208235354,-500.0,0.00013898,2]
[354051484,1740208235364,-500.0,0.00013898,2]
[354051486,1740208235373,-500.75244654,0.00013898,2]
[354051488,1740208235383,-247.75254895,0.00013898,2]
[354051490,1740208235392,-500.0,0.00013898,2]
[354051501,1740208235478,-500.0,0.00013898,2]
[354051503,1740208235488,-500.0,0.00013898,2]
[354051505,1740208235497,-501.99398181,0.00013898,2]
[354051507,1740208235507,-500.0,0.00013898,2]
[354051509,1740208235517,-500.5627561,0.00013898,2]
[354051511,1740208235526,-500.0,0.00013898,2]
[354051513,1740208235536,-502.07800574,0.00013898,2]
[354051515,1740208235545,-504.66071761,0.00013898,2]
[354051517,1740208235554,-502.53828855,0.00013898,2]
[354051519,1740208235564,-502.08708375,0.00013898,2]
[354051521,1740208235573,-500.0,0.00013898,2]
[354051523,1740208235582,-500.0,0.00013898,2]
[354051525,1740208235592,-500.14137982,0.00013898,2]
[354051527,1740208235601,-502.16403711,0.00013898,2]
[354051529,1740208235610,-500.0,0.00013898,2]
[354051531,1740208235621,-500.0,0.00013898,2]
[354051533,1740208235631,-502.43471651,0.00013898,2]
[354051535,1740208235641,-500.0,0.00013898,2]
[354051537,1740208235650,-500.0,0.00013898,2]
[354051539,1740208235659,-501.2557542,0.00013898,2]
[354051541,1740208235669,-500.0,0.00013898,2]
[354051543,1740208235678,-500.0,0.00013898,2]
[354051545,1740208235687,-500.0,0.00013898,2]
[354051547,1740208235697,-500.0,0.00013898,2]
[354051549,1740208235707,-500.0,0.00013898,2]
[354051551,1740208235716,-500.0,0.00013898,2]
[354051553,1740208235725,-500.0,0.00013898,2]
[354051555,1740208235740,-500.0,0.00013898,2]
[354051557,1740208235750,-500.0,0.00013898,2]
[354051560,1740208235760,-506.22815054,0.00013898,2]
[354051562,1740208235769,-504.10515674,0.00013898,2]
[354051564,1740208235778,-500.0,0.00013898,2]
[354051565,1740208235787,-500.0,0.00013898,2]
[354051567,1740208235796,-500.0,0.00013898,2]
[354051569,1740208235806,-502.77889668,0.00013898,2]
[354051571,1740208235815,-500.0,0.00013898,2]
[354051573,1740208235824,-500.0,0.00013898,2]
[354051575,1740208235834,-501.33727201,0.00013898,2]
[354051577,1740208235843,-500.0,0.00013898,2]
[354051579,1740208235852,-500.0,0.00013898,2]
[354051580,1740208235862,-500.0,0.00013898,2]
[354051582,1740208235872,-502.29008734,0.00013898,2]
[354051583,1740208235881,-500.0,0.00013898,2]
[354051585,1740208235890,-500.0,0.00013898,2]
[354051587,1740208235899,-501.59953011,0.00013898,2]
[354051589,1740208235908,-500.0,0.00013898,2]
[354051590,1740208235918,-236.60465584,0.00013898,2]
[354051592,1740208235927,-500.0,0.00013898,2]
[354051594,1740208235936,-500.0,0.00013898,2]
[354051595,1740208235946,-502.40916475,0.00013898,2]